[Event "Titled Tuesday Blitz June 28 Early 2022"]
[White "Vovk, Orest"]
[Black "Csonka, Balazs"]
[WhiteFideId "14113490"]
[BlackFideId "742910"]
[WhiteElo "2203"]
[BlackElo "2404"]
[Result "0-1"]
[Round "01"]
[TimeControl "180+1"]
[Date "2022.06.28"]
[WhiteClock "0:01:05"]
[BlackClock "0:00:19"]

1. h4 {[%clk 0:02:56]}  e5 {[%clk 0:02:58]} 2. h5 {[%clk 0:02:56]}  d5 {[%clk 0:02:57]} 3. h6 {[%clk 0:02:56]}  Nxh6 {[%clk 0:02:54]} 4. d4 {[%clk 0:02:56]}  exd4 {[%clk 0:02:53]} 5. Bxh6 {[%clk 0:02:57]}  gxh6 {[%clk 0:02:54]} 6. Qxd4 {[%clk 0:02:57]}  Rg8 {[%clk 0:02:55]} 7. Nc3 {[%clk 0:02:57]}  Be6 {[%clk 0:02:42]} 8. O-O-O {[%clk 0:02:55]}  Nc6 {[%clk 0:02:36]} 9. Qh4 {[%clk 0:02:53]}  Be7 {[%clk 0:02:02]} 10. Qa4 {[%clk 0:02:47]}  Bf6 {[%clk 0:01:50]} 11. Nxd5 {[%clk 0:02:34]}  Bxd5 {[%clk 0:01:46]} 12. e4 {[%clk 0:02:34]}  Bg5+ {[%clk 0:01:45]} 13. Kb1 {[%clk 0:02:21]}  Bxa2+ {[%clk 0:01:44]} 14. Kxa2 {[%clk 0:02:22]}  Qxd1 {[%clk 0:01:44]} 15. Bb5 {[%clk 0:02:18]}  Rg6 {[%clk 0:01:35]} 16. f4 {[%clk 0:02:04]}  Bxf4 {[%clk 0:01:27]} 17. Nh3 {[%clk 0:02:04]}  Qxh1 {[%clk 0:01:16]} 18. Nxf4 {[%clk 0:02:03]}  O-O-O {[%clk 0:00:45]} 19. Nxg6 {[%clk 0:02:01]}  hxg6 {[%clk 0:00:45]} 20. Bxc6 {[%clk 0:01:54]}  bxc6 {[%clk 0:00:46]} 21. Qxc6 {[%clk 0:01:52]}  Qh5 {[%clk 0:00:36]} 22. b4 {[%clk 0:01:38]}  Qe5 {[%clk 0:00:32]} 23. Qa6+ {[%clk 0:01:27]}  Kb8 {[%clk 0:00:27]} 24. Qa4 {[%clk 0:01:06]}  Qxe4 {[%clk 0:00:21]} 25. Qb5+ {[%clk 0:01:05]}  Qb7 {[%clk 0:00:21]} 26. Qc5 {[%clk 0:01:05]}  Qxg2 {[%clk 0:00:18]} 27. Qb5+ {[%clk 0:01:05]}  Qb7 {[%clk 0:00:18]} 28. Qc5 {[%clk 0:01:05]}  Qd5+ {[%clk 0:00:19]} 0-1


[Site "https://www.chess.com"]

[Event "Titled Tuesday Blitz June 28 Early 2022"]
[White "Yuan, Qingyu"]
[Black "Gueci, Tea"]
[WhiteFideId "8609772"]
[BlackFideId "872342"]
[WhiteElo "2359"]
[BlackElo "2142"]
[Result "1/2-1/2"]
[Round "01"]
[TimeControl "180+1"]
[Date "2022.06.28"]
[WhiteClock "0:00:09"]
[BlackClock "0:00:18"]

1. e4 {[%clk 0:03:00]}  g6 {[%clk 0:02:59]} 2. d4 {[%clk 0:03:00]}  Bg7 {[%clk 0:03:00]} 3. Nf3 {[%clk 0:03:00]}  d6 {[%clk 0:03:00]} 4. Bc4 {[%clk 0:03:00]}  c6 {[%clk 0:02:58]} 5. Qe2 {[%clk 0:02:53]}  Nf6 {[%clk 0:02:54]} 6. Bb3 {[%clk 0:02:50]}  O-O {[%clk 0:02:52]} 7. h3 {[%clk 0:02:48]}  Qc7 {[%clk 0:02:45]} 8. O-O {[%clk 0:02:48]}  e5 {[%clk 0:02:45]} 9. dxe5 {[%clk 0:02:42]}  dxe5 {[%clk 0:02:46]} 10. Nbd2 {[%clk 0:02:41]}  Nbd7 {[%clk 0:02:45]} 11. c3 {[%clk 0:02:40]}  Nc5 {[%clk 0:02:38]} 12. Bc2 {[%clk 0:02:39]}  Ne6 {[%clk 0:02:35]} 13. Nc4 {[%clk 0:02:38]}  Nh5 {[%clk 0:02:31]} 14. a4 {[%clk 0:02:37]}  Nhf4 {[%clk 0:02:31]} 15. Qe3 {[%clk 0:02:27]}  Rd8 {[%clk 0:02:24]} 16. Kh2 {[%clk 0:02:17]}  b5 {[%clk 0:02:09]} 17. axb5 {[%clk 0:02:11]}  cxb5 {[%clk 0:02:10]} 18. Na5 {[%clk 0:02:11]}  Nc5 {[%clk 0:02:09]} 19. Nb3 {[%clk 0:01:50]}  Nxb3 {[%clk 0:01:36]} 20. Bxb3 {[%clk 0:01:50]}  h6 {[%clk 0:01:35]} 21. Rd1 {[%clk 0:01:28]}  Rxd1 {[%clk 0:01:19]} 22. Bxd1 {[%clk 0:01:28]}  a6 {[%clk 0:01:20]} 23. Bb3 {[%clk 0:01:26]}  Be6 {[%clk 0:01:17]} 24. Bxe6 {[%clk 0:01:25]}  Nxe6 {[%clk 0:01:18]} 25. Qe2 {[%clk 0:01:21]}  Qc6 {[%clk 0:01:15]} 26. Qc2 {[%clk 0:01:16]}  Rd8 {[%clk 0:01:14]} 27. Be3 {[%clk 0:01:16]}  Nd4 {[%clk 0:01:09]} 28. Bxd4 {[%clk 0:00:58]}  exd4 {[%clk 0:01:09]} 29. Rd1 {[%clk 0:00:41]}  Qc7+ {[%clk 0:00:59]} 30. Kg1 {[%clk 0:00:35]}  dxc3 {[%clk 0:00:59]} 31. Rxd8+ {[%clk 0:00:36]}  Qxd8 {[%clk 0:01:00]} 32. bxc3 {[%clk 0:00:36]}  Qc7 {[%clk 0:00:57]} 33. Qa2 {[%clk 0:00:27]}  a5 {[%clk 0:00:53]} 34. e5 {[%clk 0:00:18]}  Qxc3 {[%clk 0:00:52]} 35. e6 {[%clk 0:00:18]}  fxe6 {[%clk 0:00:47]} 36. Qxe6+ {[%clk 0:00:18]}  Kh7 {[%clk 0:00:48]} 37. h4 {[%clk 0:00:15]}  Qf6 {[%clk 0:00:38]} 38. Qd5 {[%clk 0:00:12]}  a4 {[%clk 0:00:29]} 39. Qxb5 {[%clk 0:00:10]}  a3 {[%clk 0:00:29]} 40. Qa5 {[%clk 0:00:08]}  Qb2 {[%clk 0:00:25]} 41. h5 {[%clk 0:00:08]}  Qb1+ {[%clk 0:00:19]} 42. Kh2 {[%clk 0:00:08]}  a2 {[%clk 0:00:19]} 43. hxg6+ {[%clk 0:00:09]}  Kxg6 {[%clk 0:00:19]} 44. Nh4+ {[%clk 0:00:09]}  Kh7 {[%clk 0:00:19]} 45. Qh5 {[%clk 0:00:03]}  a1=Q {[%clk 0:00:17]} 46. f4 {[%clk 0:00:04]}  Qf6 {[%clk 0:00:16]} 47. g3 {[%clk 0:00:02]}  Qc2+ {[%clk 0:00:16]} 48. Kh3 {[%clk 0:00:02]}  Qc8+ {[%clk 0:00:17]} 49. f5 {[%clk 0:00:02]}  Qd7 {[%clk 0:00:15]} 50. Qg4 {[%clk 0:00:02]}  Qdd4 {[%clk 0:00:15]} 51. Qh5 {[%clk 0:00:02]}  Qa1 {[%clk 0:00:14]} 52. Qf3 {[%clk 0:00:03]}  Qac3 {[%clk 0:00:13]} 53. Qe4 {[%clk 0:00:03]}  Qcd4 {[%clk 0:00:13]} 54. Qf3 {[%clk 0:00:03]}  Qde5 {[%clk 0:00:13]} 55. Qg4 {[%clk 0:00:04]}  Kg8 {[%clk 0:00:13]} 56. Qh5 {[%clk 0:00:04]}  Kf8 {[%clk 0:00:13]} 57. Ng6+ {[%clk 0:00:04]}  Qxg6 {[%clk 0:00:12]} 58. Qxg6 {[%clk 0:00:05]}  Qf6 {[%clk 0:00:12]} 59. Qxf6+ {[%clk 0:00:04]}  Bxf6 {[%clk 0:00:13]} 60. Kg4 {[%clk 0:00:04]}  Bg5 {[%clk 0:00:14]} 61. Kh5 {[%clk 0:00:05]}  Kg7 {[%clk 0:00:15]} 62. Kg4 {[%clk 0:00:06]}  Kf6 {[%clk 0:00:16]} 63. Kh3 {[%clk 0:00:06]}  Kxf5 {[%clk 0:00:17]} 64. Kg2 {[%clk 0:00:07]}  Kg4 {[%clk 0:00:17]} 65. Kh1 {[%clk 0:00:07]}  Kxg3 {[%clk 0:00:17]} 66. Kg1 {[%clk 0:00:07]}  h5 {[%clk 0:00:18]} 67. Kh1 {[%clk 0:00:08]}  Bf4 {[%clk 0:00:18]} 68. Kg1 {[%clk 0:00:09]}  h4 {[%clk 0:00:18]} 69. Kh1 {[%clk 0:00:10]}  h3 {[%clk 0:00:18]} 70. Kg1 {[%clk 0:00:09]} 1/2-1/2


[Site "https://www.chess.com"]

[Event "Titled Tuesday Blitz June 28 Early 2022"]
[White "Zhigalko, Sergei"]
[Black "Pein, Jonathan"]
[WhiteFideId "13502956"]
[BlackFideId "417092"]
[WhiteElo "2662"]
[BlackElo "2140"]
[Result "1-0"]
[Round "01"]
[TimeControl "180+1"]
[Date "2022.06.28"]
[WhiteClock "0:00:22"]
[BlackClock "0:00:14"]

1. e4 {[%clk 0:03:00]}  e5 {[%clk 0:02:57]} 2. Nf3 {[%clk 0:03:00]}  d6 {[%clk 0:02:57]} 3. d4 {[%clk 0:02:58]}  exd4 {[%clk 0:02:58]} 4. Qxd4 {[%clk 0:02:58]}  Nf6 {[%clk 0:02:50]} 5. Nc3 {[%clk 0:02:58]}  Be7 {[%clk 0:02:49]} 6. Bf4 {[%clk 0:02:57]}  Be6 {[%clk 0:02:49]} 7. O-O-O {[%clk 0:02:57]}  O-O {[%clk 0:02:44]} 8. Kb1 {[%clk 0:02:57]}  Nc6 {[%clk 0:02:45]} 9. Qd2 {[%clk 0:02:57]}  Rb8 {[%clk 0:02:44]} 10. Bd3 {[%clk 0:02:48]}  b5 {[%clk 0:02:32]} 11. Rhe1 {[%clk 0:02:47]}  Nb4 {[%clk 0:02:28]} 12. Bf1 {[%clk 0:02:44]}  Bc4 {[%clk 0:02:22]} 13. e5 {[%clk 0:02:31]}  dxe5 {[%clk 0:02:09]} 14. Qxd8 {[%clk 0:02:27]}  Rfxd8 {[%clk 0:02:07]} 15. Bxe5 {[%clk 0:02:16]}  Rxd1+ {[%clk 0:02:02]} 16. Rxd1 {[%clk 0:02:13]}  Bxf1 {[%clk 0:02:02]} 17. Rxf1 {[%clk 0:02:14]}  Nbd5 {[%clk 0:01:55]} 18. Nxd5 {[%clk 0:02:07]}  Nxd5 {[%clk 0:01:54]} 19. Nd4 {[%clk 0:02:07]}  Bf6 {[%clk 0:01:44]} 20. Bxf6 {[%clk 0:01:59]}  Nxf6 {[%clk 0:01:45]} 21. Nc6 {[%clk 0:01:59]}  Re8 {[%clk 0:01:29]} 22. Nxa7 {[%clk 0:01:57]}  Ne4 {[%clk 0:01:27]} 23. Kc1 {[%clk 0:01:56]}  Nd6 {[%clk 0:01:27]} 24. Nc6 {[%clk 0:01:55]}  Re4 {[%clk 0:01:12]} 25. b3 {[%clk 0:01:48]}  g5 {[%clk 0:01:08]} 26. Rd1 {[%clk 0:01:43]}  Re2 {[%clk 0:01:04]} 27. Rd2 {[%clk 0:01:40]}  Re1+ {[%clk 0:01:00]} 28. Kb2 {[%clk 0:01:40]}  Kg7 {[%clk 0:00:50]} 29. Nd4 {[%clk 0:01:32]}  Rg1 {[%clk 0:00:43]} 30. f3 {[%clk 0:01:30]}  Rh1 {[%clk 0:00:40]} 31. h3 {[%clk 0:01:31]}  Re1 {[%clk 0:00:40]} 32. Kc3 {[%clk 0:01:14]}  Ra1 {[%clk 0:00:33]} 33. Kb4 {[%clk 0:01:09]}  Rxa2 {[%clk 0:00:23]} 34. Nxb5 {[%clk 0:01:08]}  Nf5 {[%clk 0:00:12]} 35. Nxc7 {[%clk 0:01:01]}  Ne3 {[%clk 0:00:12]} 36. Kc3 {[%clk 0:00:57]}  Ra5 {[%clk 0:00:11]} 37. b4 {[%clk 0:00:56]}  Ra3+ {[%clk 0:00:10]} 38. Kd4 {[%clk 0:00:51]}  Nf5+ {[%clk 0:00:10]} 39. Kc4 {[%clk 0:00:45]}  Ne3+ {[%clk 0:00:10]} 40. Kb5 {[%clk 0:00:45]}  Rc3 {[%clk 0:00:10]} 41. Nd5 {[%clk 0:00:35]}  Rxc2 {[%clk 0:00:10]} 42. Rxc2 {[%clk 0:00:32]}  Nxc2 {[%clk 0:00:11]} 43. Kc4 {[%clk 0:00:32]}  Kg6 {[%clk 0:00:09]} 44. b5 {[%clk 0:00:31]}  Na3+ {[%clk 0:00:09]} 45. Kc5 {[%clk 0:00:32]}  Nxb5 {[%clk 0:00:10]} 46. Kxb5 {[%clk 0:00:32]}  Kf5 {[%clk 0:00:11]} 47. Kc4 {[%clk 0:00:28]}  Ke5 {[%clk 0:00:11]} 48. Ne3 {[%clk 0:00:25]}  Kf4 {[%clk 0:00:11]} 49. Nf1 {[%clk 0:00:26]}  h5 {[%clk 0:00:10]} 50. Kd3 {[%clk 0:00:26]}  f5 {[%clk 0:00:11]} 51. Ke2 {[%clk 0:00:25]}  g4 {[%clk 0:00:12]} 52. g3+ {[%clk 0:00:25]}  Ke5 {[%clk 0:00:12]} 53. f4+ {[%clk 0:00:24]}  Ke4 {[%clk 0:00:13]} 54. h4 {[%clk 0:00:23]}  Kd4 {[%clk 0:00:13]} 55. Ne3 {[%clk 0:00:22]}  Ke4 {[%clk 0:00:14]} 56. Kf2 {[%clk 0:00:22]} 1-0


[Site "https://www.chess.com"]

[Event "Titled Tuesday Blitz June 28 Early 2022"]
[White "Agasarov, Benik"]
[Black "Mendez Fortes, Eduardo Jesus"]
[WhiteFideId "13314823"]
[BlackFideId "3502376"]
[WhiteElo "2704"]
[BlackElo "2321"]
[Result "1-0"]
[Round "02"]
[TimeControl "180+1"]
[Date "2022.06.28"]
[WhiteClock "0:00:18"]
[BlackClock "0:00:08"]

1. c4 {[%clk 0:02:53]}  Nf6 {[%clk 0:02:58]} 2. Nc3 {[%clk 0:02:53]}  e6 {[%clk 0:02:58]} 3. e4 {[%clk 0:02:53]}  d5 {[%clk 0:02:59]} 4. e5 {[%clk 0:02:52]}  d4 {[%clk 0:02:59]} 5. exf6 {[%clk 0:02:53]}  dxc3 {[%clk 0:03:00]} 6. bxc3 {[%clk 0:02:53]}  Qxf6 {[%clk 0:03:00]} 7. Nf3 {[%clk 0:02:54]}  b6 {[%clk 0:03:00]} 8. d4 {[%clk 0:02:53]}  Bb7 {[%clk 0:03:00]} 9. Be2 {[%clk 0:02:52]}  Bd6 {[%clk 0:02:59]} 10. O-O {[%clk 0:02:48]}  h6 {[%clk 0:02:55]} 11. Rb1 {[%clk 0:02:46]}  c5 {[%clk 0:02:46]} 12. Ba3 {[%clk 0:02:40]}  Nd7 {[%clk 0:02:42]} 13. Qa4 {[%clk 0:02:37]}  Qe7 {[%clk 0:02:12]} 14. dxc5 {[%clk 0:01:38]}  Bxc5 {[%clk 0:02:10]} 15. Rbd1 {[%clk 0:01:33]}  Bxa3 {[%clk 0:02:00]} 16. Ne5 {[%clk 0:01:34]}  Bd6 {[%clk 0:01:58]} 17. Rxd6 {[%clk 0:01:22]}  Qxd6 {[%clk 0:01:55]} 18. Rd1 {[%clk 0:01:19]}  Qxe5 {[%clk 0:01:42]} 19. Qxd7+ {[%clk 0:01:18]}  Kf8 {[%clk 0:01:43]} 20. Qxb7 {[%clk 0:01:18]}  Rb8 {[%clk 0:01:14]} 21. Qxa7 {[%clk 0:01:08]}  g6 {[%clk 0:01:06]} 22. Rd7 {[%clk 0:01:04]}  Rh7 {[%clk 0:01:01]} 23. g3 {[%clk 0:00:57]}  Kg8 {[%clk 0:00:44]} 24. Bf3 {[%clk 0:00:54]}  Rf8 {[%clk 0:00:40]} 25. Qxb6 {[%clk 0:00:52]}  Qxc3 {[%clk 0:00:40]} 26. Qb3 {[%clk 0:00:42]}  Qc1+ {[%clk 0:00:35]} 27. Kg2 {[%clk 0:00:42]}  h5 {[%clk 0:00:36]} 28. h4 {[%clk 0:00:42]}  Rg7 {[%clk 0:00:36]} 29. Rd1 {[%clk 0:00:40]}  Qh6 {[%clk 0:00:32]} 30. c5 {[%clk 0:00:40]}  g5 {[%clk 0:00:32]} 31. hxg5 {[%clk 0:00:41]}  Qxg5 {[%clk 0:00:33]} 32. c6 {[%clk 0:00:35]}  h4 {[%clk 0:00:33]} 33. g4 {[%clk 0:00:28]}  Qf4 {[%clk 0:00:30]} 34. Rh1 {[%clk 0:00:27]}  Rh7 {[%clk 0:00:24]} 35. Rh3 {[%clk 0:00:27]}  e5 {[%clk 0:00:13]} 36. Qc2 {[%clk 0:00:25]}  Kh8 {[%clk 0:00:12]} 37. c7 {[%clk 0:00:25]}  Rc8 {[%clk 0:00:10]} 38. a4 {[%clk 0:00:23]}  e4 {[%clk 0:00:10]} 39. Qxe4 {[%clk 0:00:22]}  Qxe4 {[%clk 0:00:10]} 40. Bxe4 {[%clk 0:00:23]}  Rg7 {[%clk 0:00:10]} 41. Rxh4+ {[%clk 0:00:24]}  Kg8 {[%clk 0:00:10]} 42. f3 {[%clk 0:00:21]}  Rxc7 {[%clk 0:00:11]} 43. Rh5 {[%clk 0:00:22]}  f6 {[%clk 0:00:10]} 44. Rb5 {[%clk 0:00:22]}  Rg5 {[%clk 0:00:10]} 45. Rb8+ {[%clk 0:00:21]}  Kg7 {[%clk 0:00:11]} 46. Ra8 {[%clk 0:00:22]}  Rgc5 {[%clk 0:00:10]} 47. a5 {[%clk 0:00:22]}  Rc1 {[%clk 0:00:10]} 48. a6 {[%clk 0:00:22]}  Ra1 {[%clk 0:00:10]} 49. Bb7 {[%clk 0:00:21]}  Kh6 {[%clk 0:00:09]} 50. Re8 {[%clk 0:00:21]}  Kg5 {[%clk 0:00:10]} 51. Re4 {[%clk 0:00:20]}  Rh7 {[%clk 0:00:08]} 52. Re2 {[%clk 0:00:18]}  Rhh1 {[%clk 0:00:07]} 53. Kf2 {[%clk 0:00:17]}  Kf4 {[%clk 0:00:06]} 54. Re4+ {[%clk 0:00:17]}  Kg5 {[%clk 0:00:05]} 55. Ke3 {[%clk 0:00:17]}  Rhe1+ {[%clk 0:00:06]} 56. Kd4 {[%clk 0:00:17]}  Red1+ {[%clk 0:00:06]} 57. Kc5 {[%clk 0:00:17]}  Rdc1+ {[%clk 0:00:06]} 58. Kb6 {[%clk 0:00:17]}  Rab1+ {[%clk 0:00:05]} 59. Ka7 {[%clk 0:00:16]}  Rh1 {[%clk 0:00:04]} 60. Kb8 {[%clk 0:00:16]}  Rh8+ {[%clk 0:00:05]} 61. Kc7 {[%clk 0:00:16]}  Kh4 {[%clk 0:00:05]} 62. a7 {[%clk 0:00:15]}  Rh7+ {[%clk 0:00:05]} 63. Kc6 {[%clk 0:00:16]}  Rc1+ {[%clk 0:00:05]} 64. Kb6 {[%clk 0:00:15]}  Rb1+ {[%clk 0:00:04]} 65. Ka6 {[%clk 0:00:14]}  Rhxb7 {[%clk 0:00:03]} 66. a8=Q {[%clk 0:00:14]}  R7b6+ {[%clk 0:00:02]} 67. Ka7 {[%clk 0:00:14]}  Ra1+ {[%clk 0:00:01]} 68. Kxb6 {[%clk 0:00:15]}  Rxa8 {[%clk 0:00:02]} 69. Rf4 {[%clk 0:00:16]}  Kg5 {[%clk 0:00:02]} 70. Rf5+ {[%clk 0:00:16]}  Kg6 {[%clk 0:00:03]} 71. Kc5 {[%clk 0:00:17]}  Rb8 {[%clk 0:00:04]} 72. Kd6 {[%clk 0:00:17]}  Ra8 {[%clk 0:00:04]} 73. Ke7 {[%clk 0:00:17]}  Ra7+ {[%clk 0:00:05]} 74. Ke6 {[%clk 0:00:17]}  Ra6+ {[%clk 0:00:06]} 75. Kd7 {[%clk 0:00:17]}  Ra7+ {[%clk 0:00:07]} 76. Kc6 {[%clk 0:00:17]}  Ra3 {[%clk 0:00:08]} 77. Kd5 {[%clk 0:00:17]}  Ra5+ {[%clk 0:00:08]} 78. Ke6 {[%clk 0:00:17]}  Ra6+ {[%clk 0:00:09]} 79. Kd5 {[%clk 0:00:17]}  Ra5+ {[%clk 0:00:09]} 80. Ke4 {[%clk 0:00:18]}  Ra4+ {[%clk 0:00:09]} 81. Ke3 {[%clk 0:00:18]}  Ra3+ {[%clk 0:00:10]} 82. Kf2 {[%clk 0:00:19]}  Ra2+ {[%clk 0:00:11]} 83. Kg3 {[%clk 0:00:19]}  Ra3 {[%clk 0:00:11]} 84. Rc5 {[%clk 0:00:20]}  Ra6 {[%clk 0:00:12]} 85. Rb5 {[%clk 0:00:20]}  Ra4 {[%clk 0:00:12]} 86. Rb6 {[%clk 0:00:21]}  Ra5 {[%clk 0:00:12]} 87. Kh3 {[%clk 0:00:21]}  Ra3 {[%clk 0:00:12]} 88. Kg3 {[%clk 0:00:22]}  Ra5 {[%clk 0:00:13]} 89. Kh4 {[%clk 0:00:22]}  Rc5 {[%clk 0:00:13]} 90. f4 {[%clk 0:00:23]}  Rc4 {[%clk 0:00:13]} 91. f5+ {[%clk 0:00:23]}  Kg7 {[%clk 0:00:12]} 92. Rb7+ {[%clk 0:00:23]}  Kf8 {[%clk 0:00:13]} 93. Kh5 {[%clk 0:00:23]}  Rd4 {[%clk 0:00:13]} 94. Kg6 {[%clk 0:00:19]}  Rxg4+ {[%clk 0:00:13]} 95. Kxf6 {[%clk 0:00:20]}  Kg8 {[%clk 0:00:14]} 96. Rb8+ {[%clk 0:00:20]}  Kh7 {[%clk 0:00:14]} 97. Kf7 {[%clk 0:00:20]}  Ra4 {[%clk 0:00:15]} 98. Rb7 {[%clk 0:00:20]}  Ra6 {[%clk 0:00:14]} 99. f6 {[%clk 0:00:20]}  Rc6 {[%clk 0:00:14]} 100. Ke7 {[%clk 0:00:20]}  Ra6 {[%clk 0:00:13]} 101. f7 {[%clk 0:00:20]}  Ra8 {[%clk 0:00:09]} 102. f8=Q {[%clk 0:00:20]}  Ra7 {[%clk 0:00:08]} 103. Rxa7 {[%clk 0:00:18]}  Kg6 {[%clk 0:00:08]} 104. Qf6+ {[%clk 0:00:18]} 1-0


[Site "https://www.chess.com"]

[Event "Titled Tuesday Blitz June 28 Early 2022"]
[White "Ajay Krishna, S"]
[Black "Silva Lucena, Cristian"]
[WhiteFideId "5096430"]
[BlackFideId "2232588"]
[WhiteElo "2247"]
[BlackElo "2223"]
[Result "0-1"]
[Round "02"]
[TimeControl "180+1"]
[Date "2022.06.28"]
[WhiteClock "0:00:12"]
[BlackClock "0:00:23"]

1. d4 {[%clk 0:02:11]}  Nf6 {[%clk 0:02:58]} 2. c4 {[%clk 0:02:10]}  g6 {[%clk 0:02:58]} 3. Nc3 {[%clk 0:02:10]}  Bg7 {[%clk 0:02:59]} 4. g3 {[%clk 0:02:10]}  O-O {[%clk 0:02:58]} 5. Bg2 {[%clk 0:02:10]}  d6 {[%clk 0:02:58]} 6. e4 {[%clk 0:02:10]}  e5 {[%clk 0:02:56]} 7. Nge2 {[%clk 0:02:10]}  Nc6 {[%clk 0:02:57]} 8. d5 {[%clk 0:02:09]}  Nd4 {[%clk 0:02:57]} 9. O-O {[%clk 0:02:08]}  Nd7 {[%clk 0:02:48]} 10. Nxd4 {[%clk 0:02:06]}  exd4 {[%clk 0:02:48]} 11. Nb5 {[%clk 0:02:03]}  Qf6 {[%clk 0:02:41]} 12. Nxc7 {[%clk 0:01:56]}  Rb8 {[%clk 0:02:42]} 13. h4 {[%clk 0:01:42]}  h6 {[%clk 0:02:29]} 14. Nb5 {[%clk 0:01:41]}  a6 {[%clk 0:02:28]} 15. Na3 {[%clk 0:01:41]}  b5 {[%clk 0:02:23]} 16. cxb5 {[%clk 0:01:40]}  axb5 {[%clk 0:02:24]} 17. Nc2 {[%clk 0:01:40]}  Nc5 {[%clk 0:02:20]} 18. Nb4 {[%clk 0:01:32]}  Bd7 {[%clk 0:02:14]} 19. Bf4 {[%clk 0:01:30]}  Rfe8 {[%clk 0:02:10]} 20. Re1 {[%clk 0:01:27]}  g5 {[%clk 0:02:08]} 21. hxg5 {[%clk 0:01:26]}  hxg5 {[%clk 0:02:09]} 22. Bd2 {[%clk 0:01:27]}  Re7 {[%clk 0:01:58]} 23. Rc1 {[%clk 0:01:26]}  Rbe8 {[%clk 0:01:56]} 24. Qh5 {[%clk 0:01:03]}  Nxe4 {[%clk 0:01:30]} 25. Rxe4 {[%clk 0:01:01]}  Rxe4 {[%clk 0:01:31]} 26. Bxe4 {[%clk 0:00:59]}  Rxe4 {[%clk 0:01:32]} 27. Bxg5 {[%clk 0:01:00]}  Qf5 {[%clk 0:01:21]} 28. Nc6 {[%clk 0:00:46]}  f6 {[%clk 0:01:09]} 29. Nb8 {[%clk 0:00:21]}  fxg5 {[%clk 0:01:01]} 30. Nxd7 {[%clk 0:00:20]}  Qxd7 {[%clk 0:01:02]} 31. Qxg5 {[%clk 0:00:20]}  d3 {[%clk 0:00:56]} 32. Qg6 {[%clk 0:00:20]}  Qe8 {[%clk 0:00:47]} 33. Qxd6 {[%clk 0:00:17]}  d2 {[%clk 0:00:42]} 34. Rc7 {[%clk 0:00:17]}  Re1+ {[%clk 0:00:28]} 35. Kg2 {[%clk 0:00:14]}  Qe4+ {[%clk 0:00:26]} 36. f3 {[%clk 0:00:14]}  Re2+ {[%clk 0:00:23]} 37. Kh3 {[%clk 0:00:13]}  Qf5+ {[%clk 0:00:23]} 38. g4 {[%clk 0:00:11]}  Qxf3+ {[%clk 0:00:22]} 39. Kh4 {[%clk 0:00:12]}  Qf6+ {[%clk 0:00:21]} 40. Qxf6 {[%clk 0:00:12]}  Bxf6+ {[%clk 0:00:22]} 41. g5 {[%clk 0:00:12]}  Bxg5+ {[%clk 0:00:22]} 42. Kxg5 {[%clk 0:00:12]}  d1=Q {[%clk 0:00:22]} 43. Rc8+ {[%clk 0:00:12]}  Kf7 {[%clk 0:00:22]} 44. Rc7+ {[%clk 0:00:12]}  Re7 {[%clk 0:00:23]} 0-1


[Site "https://www.chess.com"]

[Event "Titled Tuesday Blitz June 28 Early 2022"]
[White "Alinasab, Mobina"]
[Black "Shton, Roman"]
[WhiteFideId "12528897"]
[BlackFideId "14137461"]
[WhiteElo "2031"]
[BlackElo "2013"]
[Result "1-0"]
[Round "02"]
[TimeControl "180+1"]
[Date "2022.06.28"]
[WhiteClock "0:00:08"]
[BlackClock "0:00:22"]

1. Nf3 {[%clk 0:03:00]}  d5 {[%clk 0:02:56]} 2. g3 {[%clk 0:03:00]}  Nf6 {[%clk 0:02:56]} 3. Bg2 {[%clk 0:03:01]}  Bf5 {[%clk 0:02:53]} 4. O-O {[%clk 0:03:01]}  c6 {[%clk 0:02:48]} 5. d4 {[%clk 0:03:00]}  Nbd7 {[%clk 0:02:48]} 6. b3 {[%clk 0:02:59]}  e6 {[%clk 0:02:48]} 7. Bb2 {[%clk 0:02:59]}  Bd6 {[%clk 0:02:49]} 8. c4 {[%clk 0:03:00]}  O-O {[%clk 0:02:47]} 9. Nc3 {[%clk 0:02:59]}  h6 {[%clk 0:02:47]} 10. Nd2 {[%clk 0:02:59]}  Re8 {[%clk 0:02:47]} 11. e4 {[%clk 0:02:59]}  dxe4 {[%clk 0:02:48]} 12. Ndxe4 {[%clk 0:02:59]}  Nxe4 {[%clk 0:02:48]} 13. Nxe4 {[%clk 0:03:00]}  Bc7 {[%clk 0:02:48]} 14. Qe2 {[%clk 0:03:00]}  e5 {[%clk 0:02:48]} 15. d5 {[%clk 0:02:59]}  cxd5 {[%clk 0:02:47]} 16. cxd5 {[%clk 0:02:59]}  Nf6 {[%clk 0:02:45]} 17. Nc3 {[%clk 0:02:28]}  e4 {[%clk 0:02:40]} 18. Qd2 {[%clk 0:02:19]}  Bb6 {[%clk 0:02:29]} 19. Rfe1 {[%clk 0:02:17]}  Ng4 {[%clk 0:02:26]} 20. Nd1 {[%clk 0:01:49]}  Nxf2 {[%clk 0:02:18]} 21. Ne3 {[%clk 0:01:39]}  Nd3 {[%clk 0:01:57]} 22. Rf1 {[%clk 0:01:27]}  Nxb2 {[%clk 0:01:53]} 23. Rxf5 {[%clk 0:01:24]}  Nd3 {[%clk 0:01:43]} 24. Kh1 {[%clk 0:01:21]}  g6 {[%clk 0:01:30]} 25. Rff1 {[%clk 0:01:18]}  f5 {[%clk 0:01:30]} 26. Nc4 {[%clk 0:00:50]}  Bd4 {[%clk 0:01:26]} 27. Rad1 {[%clk 0:00:39]}  b5 {[%clk 0:01:26]} 28. Na5 {[%clk 0:00:32]}  Bc5 {[%clk 0:01:09]} 29. Nb7 {[%clk 0:00:23]}  Qg5 {[%clk 0:01:06]} 30. Qe2 {[%clk 0:00:11]}  Bd4 {[%clk 0:00:55]} 31. d6 {[%clk 0:00:10]}  Bb6 {[%clk 0:00:34]} 32. Rxd3 {[%clk 0:00:09]}  exd3 {[%clk 0:00:33]} 33. Qxd3 {[%clk 0:00:09]}  Qe3 {[%clk 0:00:29]} 34. Qd5+ {[%clk 0:00:08]}  Kg7 {[%clk 0:00:29]} 35. d7 {[%clk 0:00:09]}  Re5 {[%clk 0:00:29]} 36. Qd1 {[%clk 0:00:05]}  Rb8 {[%clk 0:00:19]} 37. d8=Q {[%clk 0:00:05]}  Bxd8 {[%clk 0:00:19]} 38. Nxd8 {[%clk 0:00:06]}  Rb6 {[%clk 0:00:17]} 39. Nc6 {[%clk 0:00:05]}  Re6 {[%clk 0:00:14]} 40. Qd4+ {[%clk 0:00:05]}  Qxd4 {[%clk 0:00:14]} 41. Nxd4 {[%clk 0:00:06]}  Red6 {[%clk 0:00:14]} 42. Nf3 {[%clk 0:00:06]}  Ra6 {[%clk 0:00:13]} 43. Ra1 {[%clk 0:00:04]}  Rd3 {[%clk 0:00:14]} 44. Kg1 {[%clk 0:00:04]}  Rxb3 {[%clk 0:00:14]} 45. axb3 {[%clk 0:00:04]}  Rxa1+ {[%clk 0:00:14]} 46. Kf2 {[%clk 0:00:05]}  Rb1 {[%clk 0:00:15]} 47. Nd4 {[%clk 0:00:05]}  b4 {[%clk 0:00:14]} 48. Bc6 {[%clk 0:00:04]}  Rb2+ {[%clk 0:00:14]} 49. Kg1 {[%clk 0:00:04]}  a5 {[%clk 0:00:13]} 50. Ba4 {[%clk 0:00:03]}  Kf6 {[%clk 0:00:13]} 51. Nc6 {[%clk 0:00:04]}  Kg5 {[%clk 0:00:12]} 52. Nxa5 {[%clk 0:00:04]}  f4 {[%clk 0:00:12]} 53. gxf4+ {[%clk 0:00:04]}  Kxf4 {[%clk 0:00:13]} 54. Nc6 {[%clk 0:00:03]}  Kf3 {[%clk 0:00:14]} 55. Ne5+ {[%clk 0:00:03]}  Ke2 {[%clk 0:00:12]} 56. Bb5+ {[%clk 0:00:02]}  Kd2 {[%clk 0:00:11]} 57. Nc4+ {[%clk 0:00:01]}  Kc3 {[%clk 0:00:11]} 58. Nxb2 {[%clk 0:00:02]}  Kxb2 {[%clk 0:00:12]} 59. Bc4 {[%clk 0:00:03]}  g5 {[%clk 0:00:12]} 60. Kf2 {[%clk 0:00:04]}  Kc3 {[%clk 0:00:13]} 61. Kg3 {[%clk 0:00:05]}  Kd4 {[%clk 0:00:14]} 62. Kg4 {[%clk 0:00:05]}  Ke5 {[%clk 0:00:15]} 63. Kh5 {[%clk 0:00:05]}  Kf6 {[%clk 0:00:16]} 64. Kxh6 {[%clk 0:00:06]}  Kf5 {[%clk 0:00:16]} 65. Kh5 {[%clk 0:00:06]}  g4 {[%clk 0:00:17]} 66. Be2 {[%clk 0:00:06]}  Kf4 {[%clk 0:00:18]} 67. Bxg4 {[%clk 0:00:06]}  Ke3 {[%clk 0:00:18]} 68. Be6 {[%clk 0:00:06]}  Kd3 {[%clk 0:00:19]} 69. Kg6 {[%clk 0:00:06]}  Kc3 {[%clk 0:00:20]} 70. h4 {[%clk 0:00:07]}  Kb2 {[%clk 0:00:21]} 71. h5 {[%clk 0:00:08]}  Ka3 {[%clk 0:00:22]} 1-0


[Site "https://www.chess.com"]